bitfinex/quotes_BTCUSD_20230113
["timestamp","ask_amount","ask_price","bid_price","bid_amount"]
[1673614417455,0.63533382,18834.0,18833.0,0.95673712]
[1673614417699,0.64733382,18834.0,18833.0,1.01273712]
[1673614417959,0.64733382,18834.0,18833.0,1.61286751]
[1673614418213,0.64733382,18834.0,18833.0,1.55686751]
[1673614418214,0.63533382,18834.0,18833.0,1.55686751]
[1673614418464,0.63533382,18834.0,18833.0,0.9566467]
[1673614418720,0.64733382,18834.0,18833.0,1.31273712]
[1673614419210,0.64733382,18834.0,18833.0,1.01273712]
[1673614419473,0.64733382,18834.0,18833.0,1.55603481]
[1673614419975,0.64733382,18834.0,18833.0,1.01273712]
[1673614420231,0.64733382,18834.0,18833.0,0.95673712]
[1673614420232,0.63533382,18834.0,18833.0,0.95673712]
[1673614420483,0.64733382,18834.0,18833.0,1.31173712]
[1673614420733,0.63533382,18834.0,18833.0,1.20451928]
[1673614420982,0.63533382,18834.0,18833.0,1.25951928]
[1673614420983,0.64733382,18834.0,18833.0,1.25951928]
[1673614421229,0.63533382,18834.0,18833.0,1.52222712]
[1673614421492,0.63533382,18834.0,18833.0,1.70842712]
[1673614421753,0.64833382,18834.0,18833.0,1.76342712]
[1673614422010,0.63533382,18834.0,18833.0,1.70842712]
[1673614422325,0.1440709,18834.0,18833.0,1.97373206]
[1673614422540,0.54414007,18840.0,18835.0,0.1]
[1673614422541,0.00096002,18840.0,18835.0,0.1]
[1673614422834,0.00096002,18840.0,18839.0,0.0931]
[1673614423056,0.63288693,18845.0,18839.0,1.16005164]
[1673614423300,0.63288693,18845.0,18840.0,0.93272664]
[1673614423301,0.00098475,18842.0,18840.0,0.93272664]
[1673614423551,0.63288693,18845.0,18841.0,0.423914]
[1673614423818,0.63385036,18845.0,18842.0,0.73413194]
[1673614424060,0.63385036,18845.0,18843.0,0.54063194]
[1673614424309,0.63288693,18845.0,18842.0,0.21030494]
[1673614424562,0.63288693,18845.0,18842.0,0.30370494]
[1673614424810,0.62108008,18847.0,18843.0,0.730286]
[1673614425096,0.68138594,18846.0,18844.0,0.330286]
[1673614425371,0.68138594,18846.0,18843.0,0.40290494]
[1673614425617,0.1,18845.0,18842.0,0.76486053]
[1673614425876,0.68586542,18845.0,18842.0,0.76269332]
[1673614426123,0.49439704,18847.0,18842.0,0.13814049]
[1673614426380,0.00099849,18846.0,18842.0,0.21030494]
[1673614426627,0.0935,18845.0,18843.0,0.05]
[1673614426876,0.0935,18845.0,18839.0,0.59511579]
[1673614426877,0.423386,18844.0,18839.0,0.00019]
[1673614427133,0.0935,18840.0,18836.0,1.14065211]
[1673614427383,0.330286,18839.0,18837.0,0.5533]
[1673614427659,0.1,18839.0,18835.0,0.62571937]
[1673614427911,0.1,18839.0,18835.0,0.5533]
[1673614428165,0.50186639,18838.0,18835.0,0.5533]
[1673614429177,0.01798348,18839.0,18835.0,0.76360494]
[1673614429418,0.01798348,18839.0,18836.0,0.330286]
[1673614429665,0.00098348,18839.0,18837.0,0.1]
[1673614429920,6e-05,18840.0,18838.0,0.330286]
[1673614430172,6e-05,18840.0,18839.0,0.423786]
[1673614430173,0.00101901,18840.0,18839.0,0.423786]
[1673614430416,6e-05,18840.0,18839.0,0.423786]
[1673614430663,6e-05,18840.0,18838.0,0.6363189]
[1673614430664,0.55803546,18840.0,18838.0,0.6363189]
[1673614431166,0.55797546,18840.0,18838.0,0.79601828]
[1673614431412,0.55797546,18840.0,18838.0,0.67201828]
[1673614431664,0.55797546,18840.0,18838.0,0.72301828]
[1673614431912,1.32722155,18841.0,18838.0,0.72301828]
[1673614432174,1.32722155,18841.0,18839.0,9.039e-05]
[1673614432175,0.56416181,18840.0,18839.0,9.039e-05]
[1673614432424,1.33718173,18841.0,18838.0,0.72301828]
[1673614432668,0.51481791,18840.0,18838.0,0.72301828]
[1673614432920,0.73091481,18841.0,18835.0,0.55349]
[1673614433170,0.67088474,18840.0,18835.0,1.16705055]
[1673614433421,0.51122704,18840.0,18835.0,0.55349]
[1673614433695,0.59422704,18839.0,18835.0,0.55349]
[1673614433962,0.59422704,18839.0,18835.0,0.70867578]
[1673614433963,0.2573,18839.0,18835.0,0.70867578]
[1673614434229,0.65212704,18838.0,18835.0,0.00019]
[1673614434465,0.65212704,18838.0,18835.0,0.139]
[1673614434466,0.330286,18837.0,18835.0,0.139]
[1673614434711,0.330286,18836.0,18833.0,0.5724]
[1673614434968,0.49422704,18836.0,18833.0,0.5724]
[1673614435224,0.59422704,18837.0,18833.0,0.57170742]
[1673614435477,0.5952147,18837.0,18833.0,0.57170742]
[1673614435720,0.95496931,18836.0,18834.0,0.52194942]
[1673614435969,0.330286,18835.0,18833.0,0.57170742]
[1673614436215,0.00098766,18837.0,18834.0,0.24286041]
[1673614436461,0.00115766,18837.0,18836.0,0.1]
[1673614436705,0.00017,18837.0,18836.0,0.430286]
[1673614437221,0.00017,18837.0,18836.0,0.4303764]
[1673614437472,0.00017,18837.0,18836.0,0.1000904]
[1673614437720,0.00017,18837.0,18836.0,0.1110904]
[1673614437721,0.03317,18837.0,18836.0,0.1110904]
[1673614437963,0.00017,18837.0,18836.0,0.1000904]
[1673614438220,0.00117,18837.0,18836.0,1.52426963]
[1673614438465,0.00117,18837.0,18836.0,1.47351652]
[1673614438466,0.001,18837.0,18836.0,1.47351652]
[1673614438966,0.001,18837.0,18836.0,1.73896652]
[1673614439220,0.001,18837.0,18836.0,2.11535421]
[1673614439463,0.001,18837.0,18836.0,1.69330421]
[1673614439709,0.001,18837.0,18836.0,1.16698111]
[1673614440943,0.001,18837.0,18836.0,0.83669511]
[1673614441198,0.001,18837.0,18836.0,1.16698111]
[1673614441690,0.001,18837.0,18836.0,1.12098111]
[1673614442964,0.001,18837.0,18836.0,1.12028853]
[1673614443220,0.001,18837.0,18836.0,0.79009293]
[1673614443714,0.001,18837.0,18836.0,1.12028853]
[1673614444457,0.001,18837.0,18836.0,1.12037893]
[1673614446024,0.001,18837.0,18836.0,1.12028853]
[1673614446314,0.001,18837.0,18836.0,1.12037893]
[1673614446530,0.08587,18837.0,18836.0,0.061]
[1673614446792,0.92083752,18837.0,18836.0,0.061]
[1673614447776,1.51305846,18837.0,18836.0,0.061]
[1673614448022,1.02083752,18837.0,18836.0,0.061]
[1673614448530,1.00837694,18837.0,18836.0,0.04526032]
[1673614448779,1.04009372,18837.0,18836.0,0.04526032]
[1673614449039,1.04009372,18837.0,18833.0,0.55681065]
[1673614449040,1.07819038,18837.0,18833.0,0.55681065]
[1673614449296,0.430286,18836.0,18833.0,0.55681065]
[1673614449555,0.330286,18835.0,18834.0,9.041e-05]
[1673614449808,0.61191191,18837.0,18835.0,0.55024351]
[1673614450066,0.61191191,18837.0,18836.0,0.21030494]
[1673614450067,0.00097364,18837.0,18836.0,0.21030494]
[1673614450316,0.05097364,18837.0,18836.0,0.70098634]
[1673614450575,0.64116652,18839.0,18836.0,0.69007674]
[1673614450830,0.05,18837.0,18836.0,0.90038168]
[1673614451079,0.64116652,18839.0,18836.0,0.69007674]
[1673614451332,0.10099213,18840.0,18837.0,0.1]
[1673614451597,0.10099213,18840.0,18838.0,0.54059094]
[1673614451598,0.00099213,18840.0,18838.0,0.54059094]
[1673614451846,0.00099213,18840.0,18839.0,0.330286]
[1673614452098,0.00017,18841.0,18838.0,0.26551039]
[1673614452346,0.043,18840.0,18839.0,0.430286]
[1673614453101,0.043,18840.0,18839.0,0.1]
[1673614453367,0.00017,18841.0,18839.0,0.4]
[1673614453633,0.00098741,18842.0,18839.0,1.01130494]
[1673614453634,0.043,18840.0,18839.0,1.01130494]
[1673614453890,0.00098741,18842.0,18840.0,0.3]
[1673614454154,0.80009249,18845.0,18841.0,0.330286]
[1673614454400,0.00097021,18844.0,18842.0,0.64059094]
[1673614454646,0.00097021,18844.0,18843.0,0.330286]
[1673614454896,0.64287786,18845.0,18842.0,0.1]
[1673614455160,0.64287786,18845.0,18842.0,0.31030494]
[1673614455407,0.54291684,18845.0,18842.0,0.31030494]
[1673614455650,0.54291684,18845.0,18842.0,0.1]
[1673614456148,0.25817558,18846.0,18842.0,0.1]
[1673614456397,0.002,18844.0,18843.0,0.70427274]
[1673614456636,0.80750385,18846.0,18843.0,0.70427274]
[1673614456913,0.002,18845.0,18843.0,0.91457768]
[1673614457176,0.51126938,18845.0,18843.0,0.70427274]
[1673614457408,0.51126938,18845.0,18842.0,0.05]
[1673614457409,0.83588727,18842.0,18840.0,0.64918165]
[1673614457676,0.330286,18841.0,18840.0,0.64918165]
[1673614457939,0.83588727,18842.0,18840.0,0.64918165]
[1673614458439,0.83588727,18842.0,18841.0,0.55982541]
[1673614458692,0.83588727,18842.0,18841.0,0.78780097]
[1673614458938,0.83588727,18842.0,18841.0,1.20778203]
[1673614459196,0.83588727,18842.0,18841.0,1.30778203]
[1673614459441,0.83588727,18842.0,18841.0,1.00778203]
[1673614459952,0.83588727,18842.0,18841.0,1.69191473]
[1673614460195,0.83888727,18842.0,18841.0,1.81491473]
[1673614460689,0.83888727,18842.0,18841.0,2.11491473]
[1673614461426,0.83888727,18842.0,18841.0,1.53750908]
[1673614461943,0.83888727,18842.0,18841.0,1.69556394]
[1673614462189,0.83888727,18842.0,18841.0,2.35148871]
[1673614462435,0.83888727,18842.0,18841.0,2.19343385]
[1673614462692,0.83888727,18842.0,18841.0,1.53750908]
[1673614462944,0.83888727,18842.0,18841.0,2.20147776]
[1673614463450,0.83888727,18842.0,18841.0,1.11725468]
[1673614463936,0.83888727,18842.0,18841.0,0.78696868]
[1673614464428,0.80006727,18842.0,18840.0,0.68727282]
[1673614464688,0.80006727,18842.0,18841.0,0.055]
[1673614464689,0.80306727,18842.0,18841.0,0.055]
[1673614464937,0.80306727,18842.0,18841.0,0.94862692]
[1673614465187,0.80306727,18842.0,18841.0,0.750656]
[1673614465690,0.80306727,18842.0,18841.0,1.70169584]
[1673614465932,0.80306727,18842.0,18841.0,1.65063733]
[1673614466178,0.80006727,18842.0,18841.0,2.12187003]
[1673614466431,0.80406727,18842.0,18841.0,2.12187003]
[1673614466683,0.80006727,18842.0,18841.0,2.12187003]
[1673614466927,0.80306727,18842.0,18841.0,2.17696041]
[1673614467186,0.80306727,18842.0,18841.0,1.73487908]
[1673614467442,0.80306727,18842.0,18841.0,2.37056001]
[1673614467684,0.80306727,18842.0,18841.0,2.07046963]
[1673614467940,0.80306727,18842.0,18841.0,2.37056001]
[1673614468199,0.80306727,18842.0,18841.0,1.27895731]
[1673614468456,0.80306727,18842.0,18841.0,1.02096693]
[1673614468961,0.80306727,18842.0,18841.0,0.385286]
[1673614469216,1.31022611,18842.0,18841.0,0.055]
[1673614470263,1.64051211,18842.0,18841.0,0.055]
[1673614472529,1.13335327,18842.0,18841.0,0.055]
[1673614472816,1.62347655,18842.0,18841.0,0.055]
[1673614473288,1.78077655,18842.0,18841.0,0.055]
[1673614473802,0.0396,18836.0,18835.0,0.69790967]
[1673614474049,0.369886,18836.0,18835.0,0.79800008]
[1673614474301,0.03941,18836.0,18835.0,0.79800008]
[1673614474556,0.03941,18836.0,18835.0,1.12819567]
[1673614474803,0.03941,18836.0,18835.0,1.02819567]
[1673614475054,0.12428,18836.0,18835.0,0.02572639]
[1673614475301,0.67059081,18836.0,18835.0,0.02572639]
[1673614476046,0.03941,18836.0,18835.0,0.02572639]
[1673614476296,0.03941,18836.0,18835.0,0.60346125]
[1673614476538,0.03941,18836.0,18835.0,0.61346125]
[1673614476539,0.09341,18836.0,18835.0,0.61346125]
[1673614477545,0.09341,18836.0,18835.0,0.03572639]
[1673614477801,0.72044954,18836.0,18835.0,0.03572639]
[1673614478049,0.72044954,18836.0,18835.0,0.0358168]
[1673614478298,0.72044954,18836.0,18835.0,0.03572639]
[1673614478837,0.68103954,18836.0,18834.0,0.56142272]
[1673614479340,0.054,18836.0,18835.0,0.330286]
[1673614479582,0.054,18836.0,18834.0,0.56142272]
[1673614479838,0.70055292,18837.0,18834.0,0.56142272]
[1673614480095,0.70055292,18837.0,18835.0,9.041e-05]
[1673614480348,0.163,18836.0,18834.0,0.56842272]
[1673614480600,0.063,18836.0,18834.0,0.56842272]
[1673614481095,0.53140762,18835.0,18834.0,0.007]
[1673614481355,0.86169362,18835.0,18834.0,0.007]
[1673614481604,0.53140762,18835.0,18834.0,0.007]
[1673614481859,0.63140762,18835.0,18834.0,0.007]
[1673614482114,0.96169362,18835.0,18834.0,0.007]
[1673614482372,1.07830928,18835.0,18831.0,0.02572639]
[1673614482620,0.97680928,18834.0,18831.0,0.02572639]
[1673614482931,0.1564,18834.0,18831.0,0.23603133]
[1673614483121,0.00097779,18835.0,18834.0,0.67988308]
[1673614483372,0.00097779,18835.0,18834.0,0.54059094]
[1673614483619,0.063,18835.0,18834.0,1.11305094]
[1673614483872,0.00099093,18838.0,18834.0,0.895746]
[1673614484114,0.1,18841.0,18835.0,1.09729094]
[1673614484393,0.00099663,18839.0,18836.0,0.54059094]
[1673614484645,0.54797681,18840.0,18837.0,0.330286]
[1673614484895,0.54797681,18840.0,18837.0,0.21030494]
[1673614485391,0.54797681,18840.0,18838.0,9.039e-05]
[1673614485634,0.54797681,18840.0,18835.0,1.15232845]
[1673614485635,0.69614228,18839.0,18835.0,0.85232845]
[1673614485892,0.58074937,18837.0,18836.0,0.049]
[1673614486141,0.58074937,18837.0,18833.0,1.19687325]
[1673614486419,0.58074937,18837.0,18833.0,1.04027325]
[1673614486678,0.1,18836.0,18833.0,0.5209]
[1673614486927,0.58074937,18837.0,18835.0,0.122]
[1673614487227,0.005,18839.0,18836.0,0.330286]
[1673614487452,0.005,18839.0,18835.0,0.33230494]
[1673614487453,0.00098284,18837.0,18835.0,0.122]
[1673614487703,0.005,18839.0,18836.0,0.430286]
[1673614487952,0.69373058,18840.0,18837.0,0.330286]
[1673614488204,0.69373058,18840.0,18836.0,0.1000904]
[1673614488451,0.60796183,18839.0,18836.0,0.1]
[1673614488952,0.003,18839.0,18837.0,9.04e-05]
[1673614489194,0.52266645,18840.0,18837.0,9.04e-05]
[1673614489448,0.52582645,18840.0,18837.0,0.21039534]
[1673614489700,0.52282645,18840.0,18837.0,9.04e-05]
[1673614489929,0.003,18839.0,18838.0,0.63315694]
[1673614490457,0.003,18839.0,18838.0,0.63324733]
[1673614490698,0.003,18839.0,18838.0,0.96358933]
[1673614490942,0.003,18839.0,18838.0,1.52028933]
[1673614491193,0.00097959,18840.0,18838.0,1.12028933]
[1673614491447,0.02097959,18840.0,18838.0,0.78994733]
[1673614491691,0.69311562,18841.0,18839.0,0.64223865]
[1673614492226,0.79311562,18841.0,18839.0,0.64223865]
[1673614492475,0.059,18840.0,18839.0,0.64223865]
[1673614492744,0.79311562,18841.0,18839.0,0.64223865]
[1673614493035,0.79311562,18841.0,18839.0,0.01]
[1673614493302,0.68802888,18840.0,18837.0,1.24322074]
[1673614494045,0.60574014,18839.0,18837.0,1.24322074]
[1673614494572,0.60574014,18839.0,18835.0,0.57184831]
[1673614495328,0.60669367,18839.0,18835.0,0.57184831]
[1673614495577,0.09352754,18839.0,18833.0,0.68730531]
[1673614495818,0.330342,18838.0,18834.0,0.75578451]
[1673614496064,0.1,18838.0,18835.0,0.122]
[1673614496309,0.1,18838.0,18836.0,9.04e-05]
[1673614496554,0.1,18838.0,18835.0,0.122]
[1673614496805,0.1,18838.0,18836.0,0.1]
[1673614497054,0.1,18838.0,18835.0,0.62096182]
[1673614497292,0.70808776,18837.0,18835.0,0.62096182]
[1673614497538,0.70808776,18837.0,18833.0,0.74630494]
[1673614497789,0.70808776,18837.0,18834.0,0.7965543]
[1673614498035,0.70808776,18837.0,18835.0,9.041e-05]
[1673614498286,0.1,18836.0,18834.0,0.6695543]
[1673614498535,0.70904245,18837.0,18835.0,0.122]
[1673614498811,0.1,18836.0,18832.0,0.1]
[1673614499064,0.1,18836.0,18831.0,0.40577125]
[1673614499065,0.72419424,18836.0,18834.0,0.127]
[1673614499324,0.72419424,18836.0,18831.0,0.54469773]
[1673614499325,0.486942,18835.0,18831.0,0.54469773]
[1673614499568,0.330342,18834.0,18831.0,0.02572639]
[1673614499822,0.616642,18834.0,18832.0,0.65618426]
[1673614500071,0.1,18835.0,18832.0,0.65618426]
[1673614500072,0.10097698,18835.0,18832.0,0.65618426]
[1673614500592,0.00097698,18835.0,18832.0,0.65618426]
[1673614500846,0.00097698,18835.0,18833.0,0.10009042]
[1673614501105,0.00097698,18835.0,18833.0,9.042e-05]
[1673614501346,0.54148615,18835.0,18832.0,0.63048402]
[1673614501596,0.54148615,18835.0,18832.0,0.64048402]
[1673614501597,0.59948615,18835.0,18832.0,0.64048402]
[1673614501849,0.1002,18836.0,18833.0,9.042e-05]
[1673614502099,0.0002,18836.0,18833.0,0.21039536]
[1673614502348,0.0002,18836.0,18834.0,0.69507721]
[1673614502599,0.51980437,18837.0,18834.0,0.69507721]
[1673614502856,0.02,18835.0,18834.0,0.90538215]
[1673614503104,0.02,18835.0,18834.0,0.69507721]
[1673614503872,0.1,18836.0,18833.0,0.5262]
[1673614504120,0.54711191,18835.0,18831.0,1.16605233]
[1673614504369,0.5714744,18836.0,18833.0,0.122]
[1673614504614,0.66807578,18835.0,18831.0,0.68045233]
[1673614504889,0.430342,18834.0,18831.0,0.68045233]
[1673614505140,0.1,18834.0,18831.0,0.68045233]
[1673614505643,0.1,18834.0,18832.0,0.62886157]
[1673614505910,0.76906547,18835.0,18833.0,0.51418018]
[1673614505911,0.51266547,18835.0,18833.0,0.51418018]
[1673614506175,0.51266547,18835.0,18833.0,0.72448512]
[1673614506176,0.00098969,18835.0,18833.0,0.72448512]
[1673614506429,0.00098969,18835.0,18834.0,0.5405704]
[1673614506678,0.61570251,18837.0,18834.0,0.54066081]
[1673614506921,0.61570251,18837.0,18834.0,0.75087534]
[1673614507176,0.6155778,18837.0,18835.0,0.5817226]
[1673614507669,0.6155778,18837.0,18835.0,0.58181301]
[1673614508175,0.6155778,18837.0,18833.0,0.5275]
[1673614508423,0.6735778,18837.0,18835.0,0.011]
[1673614508676,0.430342,18836.0,18835.0,0.011]
[1673614509170,0.1,18836.0,18835.0,0.011]
[1673614509422,0.430342,18836.0,18835.0,0.01109041]
[1673614509671,0.3153342,18836.0,18835.0,0.011]
[1673614509922,0.3153342,18836.0,18831.0,1.14795937]
[1673614509923,9.041e-05,18834.0,18831.0,1.14795937]
[1673614510193,0.330342,18833.0,18832.0,0.54401225]
[1673614510448,9.041e-05,18834.0,18832.0,0.54401225]
[1673614510713,9.041e-05,18834.0,18833.0,0.1]
[1673614512032,9.041e-05,18834.0,18833.0,0.10009042]
[1673614512533,9.041e-05,18834.0,18833.0,0.10809042]
[1673614512534,0.06809041,18834.0,18833.0,0.10809042]
[1673614512785,0.06809041,18834.0,18833.0,0.68986214]
[1673614514275,0.06809041,18834.0,18833.0,0.58977172]
[1673614515281,0.06723806,18835.0,18833.0,0.58977172]
[1673614515528,0.06723806,18835.0,18833.0,0.008]
[1673614515800,0.330342,18834.0,18833.0,0.008]
[1673614516054,0.64445663,18834.0,18833.0,0.008]
[1673614516300,1.34851433,18834.0,18833.0,0.008]
[1673614516571,0.1,18833.0,18831.0,0.02566485]
[1673614516816,0.330342,18832.0,18831.0,0.02566485]
[1673614517576,0.587642,18832.0,18831.0,0.02566485]
[1673614517818,0.587642,18832.0,18831.0,0.11666485]
[1673614518070,0.587642,18832.0,18831.0,0.02566485]
[1673614518328,0.588642,18832.0,18831.0,0.11666485]
[1673614518828,1.90402608,18832.0,18831.0,0.02566485]
[1673614519069,1.66820413,18832.0,18831.0,0.02566485]
[1673614519327,1.36820413,18832.0,18831.0,0.02566485]
[1673614519585,1.66820413,18832.0,18831.0,0.02566485]
[1673614519826,1.66820413,18832.0,18829.0,0.02537396]
[1673614519827,0.10076922,18830.0,18829.0,0.02537396]
[1673614520103,1.04531122,18830.0,18829.0,0.02537396]
[1673614520336,1.72870787,18830.0,18829.0,0.02537396]
[1673614520581,1.72870787,18830.0,18828.0,0.02130963]
[1673614520582,0.1,18829.0,18828.0,0.02130963]
[1673614520849,0.92159126,18829.0,18828.0,0.02130963]
[1673614521342,0.82159126,18829.0,18828.0,0.02130963]
[1673614521592,0.330342,18829.0,18828.0,0.02130963]
[1673614521838,0.330342,18829.0,18828.0,0.52076604]
[1673614522382,0.67744167,18830.0,18828.0,0.02130963]
[1673614522639,0.430342,18829.0,18828.0,0.02130963]
[1673614522899,0.02379922,18830.0,18828.0,0.60148323]
[1673614523145,0.026,18829.0,18828.0,0.24270501]
[1673614523446,0.02379922,18830.0,18828.0,0.24270501]
[1673614523447,0.02379922,18830.0,18829.0,0.67738126]
[1673614523648,0.04779922,18830.0,18829.0,1.00772326]
[1673614524390,0.02379922,18830.0,18829.0,0.67738126]
[1673614524636,0.02579922,18830.0,18829.0,0.91638126]
[1673614525144,0.70107704,18830.0,18829.0,0.139]
[1673614525661,0.70101589,18830.0,18829.0,0.139]
[1673614525946,0.69901589,18830.0,18828.0,0.66572086]
[1673614526199,0.70101589,18830.0,18829.0,0.14]
[1673614526467,0.69901589,18830.0,18828.0,0.65722086]
[1673614526720,0.69901589,18830.0,18829.0,0.089]
[1673614526721,0.02473807,18830.0,18829.0,0.089]
[1673614526967,0.02373807,18830.0,18829.0,0.85987576]
[1673614527223,0.02573807,18830.0,18829.0,0.85987576]
[1673614527469,0.02573807,18830.0,18829.0,0.52953376]
[1673614527723,0.02573807,18830.0,18828.0,0.26130963]
[1673614527986,0.02573807,18830.0,18828.0,0.97038363]
[1673614528197,0.02573807,18830.0,18829.0,0.5230271]
[1673614528816,0.02573807,18830.0,18829.0,0.52311733]
[1673614528817,0.02373807,18830.0,18829.0,0.52311733]
[1673614529091,0.02373807,18830.0,18829.0,0.6120271]
[1673614529092,0.02473807,18830.0,18829.0,0.6120271]
[1673614529591,0.02473807,18830.0,18829.0,0.62061733]
[1673614529836,0.02473807,18830.0,18829.0,0.6120271]
[1673614530587,0.02473807,18830.0,18829.0,0.61211733]
[1673614530858,0.33174105,18830.0,18829.0,0.089]
[1673614531102,0.66208305,18830.0,18829.0,0.089]
[1673614531350,1.20124464,18830.0,18829.0,0.089]
[1673614531601,1.18014587,18830.0,18829.0,0.089]
[1673614532137,1.17914587,18830.0,18828.0,0.02130963]
[1673614532386,0.64852949,18829.0,18828.0,0.02130963]
[1673614532643,2.91153737,18829.0,18827.0,0.02537396]
[1673614532886,1.23749122,18828.0,18827.0,0.2356789]
[1673614533160,1.23749122,18828.0,18827.0,0.02537396]
[1673614533161,1.22354317,18828.0,18827.0,0.02537396]
[1673614533429,2.03659289,18828.0,18827.0,0.02537396]
[1673614533712,0.03240115,18826.0,18825.0,0.02702672]
[1673614533946,0.03240115,18826.0,18817.0,0.71770479]
[1673614533947,0.1,18825.0,18816.0,0.73302339]
[1673614534200,0.15677848,18823.0,18816.0,0.04]
[1673614534450,0.15677848,18823.0,18819.0,0.54654554]
[1673614534451,0.81347848,18820.0,18819.0,0.54654554]
[1673614534708,1.5132747,18820.0,18819.0,0.69123964]
[1673614534960,0.330342,18820.0,18819.0,0.69123964]
[1673614535207,0.30388315,18820.0,18819.0,0.69123964]
[1673614535457,0.40388315,18820.0,18816.0,0.04]
[1673614535720,0.488242,18819.0,18816.0,0.04]
[1673614535989,0.486947,18818.0,18816.0,0.04]
[1673614536231,0.471124,18817.0,18816.0,0.04]
[1673614536798,0.1579,18817.0,18816.0,0.04]
[1673614537016,0.2564,18818.0,18816.0,0.04]
[1673614537260,0.2564,18818.0,18816.0,0.25030494]
[1673614537261,0.01,18818.0,18816.0,0.25030494]
[1673614537512,0.01,18818.0,18817.0,0.430547]
[1673614538026,0.38947791,18824.0,18817.0,0.888447]
[1673614538281,0.00095689,18822.0,18819.0,0.1578]
[1673614538525,0.0002,18822.0,18820.0,1.16885194]
[1673614538781,0.0002,18822.0,18821.0,0.330547]
[1673614539028,0.0002,18822.0,18821.0,1.78933464]
[1673614539278,0.0002,18822.0,18821.0,1.6790297]
[1673614539532,0.0142,18822.0,18821.0,2.2790297]
[1673614539783,0.08197221,18826.0,18822.0,0.2575]
[1673614539784,0.08295826,18826.0,18822.0,0.2575]
[1673614540035,0.08295826,18826.0,18823.0,1.52398464]
[1673614540284,0.08295826,18826.0,18825.0,0.1]
[1673614540534,0.08197221,18826.0,18825.0,0.94085194]
[1673614540781,0.08197221,18826.0,18825.0,0.430547]
[1673614541037,0.08197221,18826.0,18825.0,0.730547]
[1673614541283,0.08197221,18826.0,18825.0,1.5725797]
[1673614541533,0.08197221,18826.0,18825.0,1.2725797]
[1673614541780,0.02472493,18830.0,18826.0,0.1]
[1673614542038,0.02472493,18830.0,18827.0,1.06708464]
[1673614542281,0.02472493,18830.0,18829.0,0.2566]
[1673614542533,0.02373807,18830.0,18829.0,0.587147]
[1673614543274,0.02373807,18830.0,18829.0,0.887147]
[1673614543538,0.03073807,18830.0,18829.0,0.887147]
[1673614544027,0.03073807,18830.0,18829.0,0.587147]
[1673614544305,0.03073807,18830.0,18829.0,0.887147]
[1673614544558,0.02373807,18830.0,18829.0,1.5712797]
[1673614544800,0.03073807,18830.0,18829.0,1.6752797]
[1673614545073,0.02373807,18830.0,18829.0,1.5712797]
[1673614545323,0.03073807,18830.0,18829.0,1.6752797]
[1673614545567,0.02373807,18830.0,18829.0,1.5712797]
[1673614545808,0.03073807,18830.0,18829.0,1.6752797]
[1673614546061,3.807e-05,18830.0,18829.0,1.5712797]
[1673614546304,0.00703807,18830.0,18829.0,1.5173797]
[1673614546551,3.807e-05,18830.0,18829.0,1.4133797]
[1673614546799,3.807e-05,18830.0,18829.0,1.5710797]
[1673614547056,0.00703807,18830.0,18829.0,2.2595129]
[1673614547824,0.00703807,18830.0,18829.0,1.0607797]
[1673614548082,3.807e-05,18830.0,18829.0,0.9567797]
[1673614548343,3.807e-05,18830.0,18829.0,1.42798464]
[1673614548344,0.00703807,18830.0,18829.0,1.42798464]
[1673614548596,0.00703807,18830.0,18829.0,2.48723068]
[1673614548842,7e-08,18830.0,18829.0,1.8176797]
[1673614549090,0.00201674,18836.0,18829.0,2.65929178]
[1673614549340,0.00201674,18836.0,18833.0,0.1567]
[1673614549598,0.00201674,18836.0,18834.0,1.21525194]
[1673614549848,0.00201674,18836.0,18835.0,0.330547]
[1673614550104,0.00201674,18836.0,18835.0,1e-08]
[1673614550374,0.00201674,18836.0,18835.0,0.08557001]
[1673614551148,0.00801674,18836.0,18835.0,0.08557001]
[1673614551390,0.00201674,18836.0,18835.0,0.95106082]
[1673614551674,0.70017082,18836.0,18835.0,0.00700001]
[1673614551956,0.70017082,18836.0,18835.0,0.007]
[1673614552927,0.02052709,18834.0,18831.0,1.09196487]
[1673614553185,0.02052709,18834.0,18830.0,0.66850129]
[1673614553433,0.02052709,18834.0,18830.0,1.21320129]
[1673614553683,0.02052709,18834.0,18831.0,0.21030494]
[1673614553926,0.02052709,18834.0,18833.0,0.5490433]
[1673614554191,0.02052709,18834.0,18833.0,0.9251933]
[1673614554449,0.02652709,18834.0,18833.0,0.92684662]
[1673614554694,0.02052709,18834.0,18833.0,0.92684662]
[1673614554941,0.02052709,18834.0,18833.0,0.9251933]
[1673614555198,0.02652709,18834.0,18833.0,0.5490433]
[1673614555446,0.02052709,18834.0,18833.0,0.5490433]
[1673614555704,0.02652709,18834.0,18833.0,0.6600433]
[1673614556238,0.02652709,18834.0,18833.0,0.741369]
[1673614556981,0.02652709,18834.0,18833.0,0.841369]
[1673614557733,0.02652709,18834.0,18833.0,1.3676017]
[1673614558516,0.02652709,18834.0,18833.0,1.36768435]
[1673614560511,0.00201674,18836.0,18833.0,1.36768435]
[1673614560752,0.00201674,18836.0,18834.0,1.3678077]
[1673614561011,0.00201674,18836.0,18835.0,0.85664634]
[1673614561266,0.00201674,18836.0,18835.0,1.78914634]
[1673614561755,0.00201674,18836.0,18835.0,1.79764634]
[1673614562003,0.00601674,18836.0,18835.0,1.79764634]
[1673614562254,0.00601674,18836.0,18835.0,2.32032295]
[1673614562495,0.00601674,18836.0,18835.0,1.79764634]
[1673614563010,0.00201674,18836.0,18835.0,1.79764634]
[1673614563276,0.00201674,18836.0,18835.0,1.80264634]
[1673614564277,0.00201674,18836.0,18835.0,1.95424634]
[1673614564768,0.00201674,18836.0,18835.0,2.08474656]
[1673614565030,0.00201674,18836.0,18835.0,1.5025637]
[1673614565284,0.00201674,18836.0,18835.0,1.4975637]
[1673614565772,9e-05,18839.0,18835.0,1.64940879]
[1673614566025,9e-05,18839.0,18837.0,0.1]
[1673614566299,9e-05,18839.0,18838.0,0.8565047]
[1673614566555,9e-05,18839.0,18838.0,1.1565047]
[1673614566800,0.00201674,18840.0,18838.0,1.1650047]
[1673614567045,0.00201674,18840.0,18839.0,1.2022687]
[1673614567545,0.00201674,18840.0,18839.0,1.7669687]
[1673614568315,0.00201674,18840.0,18839.0,1.9089687]
[1673614569333,0.00201674,18840.0,18839.0,1.7669687]
[1673614569586,0.00201674,18840.0,18839.0,1.66398121]
[1673614569838,0.00201674,18840.0,18839.0,1.82398121]
[1673614570085,0.00201674,18840.0,18839.0,1.96298121]